bitfinex-derivatives/quotes_BTCF0:USTF0_20260106
["timestamp","ask_amount","ask_price","bid_price","bid_amount"]
[1767671335317,0.01349269,93821.0,93811.0,0.9212]
[1767671336717,0.10979235,93821.0,93811.0,0.9212]
[1767671338107,0.10979235,93821.0,93811.0,0.8642]
[1767671338313,0.09629966,93819.0,93811.0,0.8642]
[1767671339512,0.09629966,93819.0,93809.0,0.002132]
[1767671339513,0.11100787,93816.0,93805.0,0.92124]
[1767671342219,0.09064,93826.0,93805.0,0.92124]
[1767671342220,0.11383141,93813.0,93805.0,0.92124]
[1767671342411,0.0151033,93817.0,93805.0,0.92124]
[1767671343418,0.0151033,93817.0,93803.0,0.00013113]
[1767671343419,0.11383141,93810.0,93794.0,0.92128]
[1767671343617,0.11383141,93810.0,93801.0,0.0008]
[1767671343821,0.11383141,93809.0,93801.0,0.0008]
[1767671344408,0.00013113,93808.0,93801.0,0.0008]
[1767671345221,0.11383141,93807.0,93794.0,0.92288]
[1767671345716,0.11383141,93806.0,93794.0,0.92288]
[1767671346020,0.11383141,93806.0,93794.0,0.0016]
[1767671346519,0.00013113,93808.0,93796.0,0.01463394]
[1767671346909,0.00013113,93808.0,93794.0,0.0016]
[1767671347110,0.00013113,93808.0,93794.0,0.01623394]
[1767671347311,0.00013113,93808.0,93796.0,0.01463394]
[1767671348105,0.00013113,93808.0,93795.0,0.010662]
[1767671348815,0.00013113,93808.0,93794.0,0.0016]
[1767671349419,0.00013113,93808.0,93794.0,0.012262]
[1767671351207,0.00013113,93808.0,93797.0,0.01463394]
[1767671351412,0.09064,93814.0,93799.0,0.01463394]
[1767671351825,0.09064,93814.0,93798.0,0.09827581]
[1767671352330,0.09064,93814.0,93798.0,0.11290975]
[1767671353028,0.09064,93814.0,93800.0,0.09827581]
[1767671353618,0.09064,93814.0,93801.0,0.09546038]
[1767671353921,0.09064,93821.0,93808.0,0.01463394]
[1767671354224,0.0130243,93829.0,93810.0,0.09827581]
[1767671354422,0.09872811,93830.0,93811.0,0.01463394]
[1767671354620,0.00213132,93839.0,93812.0,0.11009432]
[1767671354621,0.09064,93829.0,93812.0,0.11009432]
[1767671354820,0.09064,93829.0,93813.0,0.01463394]
[1767671356927,0.09064,93829.0,93812.0,0.09546038]
[1767671358427,0.1057433,93829.0,93811.0,0.01066]
[1767671358823,0.1057433,93829.0,93808.0,0.01066]
[1767671358824,0.11383141,93826.0,93808.0,0.01066]
[1767671359024,0.09872811,93826.0,93810.0,0.09827581]
[1767671361328,0.09872811,93826.0,93810.0,0.07427581]
[1767671362334,0.010658,93825.0,93810.0,0.07427581]
[1767671362628,0.11383141,93822.0,93805.0,0.01066]
[1767671362834,0.11383141,93820.0,93805.0,0.01066]
[1767671363134,0.11383141,93820.0,93803.0,0.09064]
[1767671363428,0.11383141,93820.0,93798.0,0.01463394]
[1767671363429,0.0151033,93812.0,93794.0,0.01623394]
[1767671363633,0.0151033,93812.0,93800.0,0.09827581]
[1767671363827,0.09872811,93813.0,93800.0,0.09827581]
[1767671364833,0.0151033,93816.0,93800.0,0.09827581]
[1767671366235,0.09064,93829.0,93806.0,0.09827581]
[1767671366236,0.0151033,93820.0,93806.0,0.09827581]
[1767671366435,0.0151033,93820.0,93810.0,0.09827581]
[1767671366734,0.11383141,93820.0,93810.0,0.09827581]
[1767671367137,0.010658,93824.0,93810.0,0.09827581]
[1767671367338,0.410658,93824.0,93810.0,0.09827581]
[1767671368134,0.410658,93824.0,93805.0,0.01066]
[1767671368333,0.010658,93824.0,93810.0,0.09827581]
[1767671368534,0.010658,93824.0,93805.0,0.01066]
[1767671368733,0.010658,93824.0,93810.0,0.09827581]
[1767671369237,0.010658,93824.0,93810.0,0.08027581]
[1767671373042,0.010658,93824.0,93807.0,0.01066]
[1767671373244,0.010658,93824.0,93810.0,0.09827581]
[1767671374645,0.010659,93822.0,93810.0,0.09827581]
[1767671375538,0.010659,93820.0,93804.0,0.02468565]
[1767671376546,0.09446957,93822.0,93804.0,0.02468565]
[1767671376743,0.09446957,93822.0,93804.0,0.00668465]
[1767671378155,0.01493265,93821.0,93802.0,0.010661]
[1767671378449,0.01493265,93820.0,93802.0,0.010661]
[1767671383762,0.010659,93819.0,93801.0,0.10948503]
[1767671384560,0.01493265,93817.0,93800.0,0.01927581]
[1767671385064,0.02559165,93817.0,93800.0,0.01927581]
[1767671385554,0.02559165,93817.0,93800.0,0.09827581]
[1767671386051,0.010659,93817.0,93800.0,0.09827581]
[1767671387357,0.01493265,93816.0,93798.0,0.010661]
[1767671387561,0.01493265,93816.0,93800.0,0.09827581]
[1767671387858,0.09446957,93817.0,93800.0,0.09827581]
[1767671388254,0.10940222,93813.0,93800.0,0.09827581]
[1767671388658,0.010659,93816.0,93800.0,0.09827581]
[1767671389773,0.10940222,93818.0,93800.0,0.09827581]
[1767671389971,0.0044,93813.0,93800.0,0.09827581]
[1767671391170,0.0044,93813.0,93798.0,0.010661]
[1767671391374,0.0044,93813.0,93800.0,0.09827581]
[1767671392262,0.0044,93813.0,93800.0,0.08427581]
[1767671392970,0.0044,93813.0,93800.0,0.09827581]
[1767671393473,0.0044,93813.0,93800.0,0.10893681]
[1767671393672,0.0044,93813.0,93800.0,0.12296146]
[1767671395173,0.0044,93813.0,93797.0,0.010661]
[1767671395369,0.0044,93813.0,93800.0,0.09827581]
[1767671398672,0.0044,93813.0,93797.0,0.010661]
[1767671400077,0.0044,93813.0,93795.0,0.0982507]
[1767671400278,0.01066,93809.0,93795.0,0.0982507]
[1767671400779,0.01066,93809.0,93795.0,0.084301]
[1767671402983,0.01506,93813.0,93795.0,0.094963]
[1767671403380,0.01066,93811.0,93795.0,0.094963]
[1767671404173,0.01066,93811.0,93795.0,0.10878129]
[1767671405391,0.01066,93811.0,93795.0,0.02448029]
[1767671405692,0.01066,93809.0,93795.0,0.01381829]
[1767671406191,0.01066,93812.0,93795.0,0.01381829]
[1767671406392,0.01066,93812.0,93796.0,0.010661]
[1767671407082,0.01066,93810.0,93795.0,0.01381829]
[1767671408292,0.0044,93813.0,93795.0,0.01381829]
[1767671408493,0.0044,93813.0,93795.0,0.00381829]
[1767671410096,0.01383855,93809.0,93794.0,0.004]
[1767671410296,0.01066,93806.0,93794.0,0.004]
[1767671410996,0.09837331,93810.0,93794.0,0.014662]
[1767671411294,0.01066,93810.0,93794.0,0.014662]
[1767671412392,0.01066,93808.0,93794.0,0.004]
[1767671412997,0.01383855,93812.0,93794.0,0.004]
[1767671412998,0.01066,93806.0,93794.0,0.004]
[1767671413294,0.01066,93806.0,93791.0,0.010662]
[1767671413295,0.02449955,93804.0,93785.0,0.101303]
[1767671413491,0.02449955,93804.0,93785.0,0.11512129]
[1767671413695,0.010661,93804.0,93788.0,0.010662]
[1767671413891,0.09064,93810.0,93788.0,0.10758376]
[1767671414093,0.09064,93810.0,93793.0,0.010662]
[1767671414294,0.09064,93810.0,93795.0,0.010662]
[1767671414998,0.09064,93810.0,93792.0,0.01381829]
[1767671414999,0.09064,93810.0,93792.0,0.02448029]
[1767671415799,0.01066,93809.0,93792.0,0.01381829]
[1767671416202,0.01066,93809.0,93792.0,0.00781829]
[1767671418086,0.01066,93809.0,93790.0,0.09376547]
[1767671418787,0.01066,93809.0,93791.0,0.010662]
[1767671419389,0.02449855,93809.0,93791.0,0.010662]
[1767671421204,0.09064,93810.0,93793.0,0.010662]
[1767671421406,0.01383855,93808.0,93790.0,0.010662]
[1767671422007,0.02449855,93808.0,93790.0,0.010662]
[1767671422311,0.02449855,93808.0,93788.0,0.01381829]
[1767671422499,0.01066,93806.0,93788.0,0.01381829]
[1767671423902,0.01066,93806.0,93788.0,0.00981829]
[1767671425008,0.02449855,93806.0,93788.0,0.00981829]
[1767671425400,0.010661,93804.0,93788.0,0.00981829]
[1767671426401,0.02449955,93802.0,93785.0,0.101303]
[1767671426598,0.01383855,93802.0,93789.0,0.010662]
[1767671427203,0.09837331,93804.0,93786.0,0.010663]
[1767671427597,0.010661,93803.0,93786.0,0.010663]
[1767671428798,0.09837331,93804.0,93786.0,0.010663]
[1767671429205,0.11221186,93804.0,93786.0,0.010663]
[1767671430110,0.12287286,93804.0,93786.0,0.010663]
[1767671430304,0.11221186,93804.0,93786.0,0.010663]
[1767671430612,0.11221186,93804.0,93788.0,0.010662]
[1767671431304,0.11221186,93804.0,93785.0,0.101303]
[1767671431500,0.11221186,93804.0,93785.0,0.081303]
[1767671431910,0.01278095,93803.0,93785.0,0.081303]
[1767671432410,0.01278095,93803.0,93785.0,0.07064]
[1767671432612,0.09837331,93804.0,93790.0,0.010662]
[1767671432814,0.01278095,93807.0,93790.0,0.010662]
[1767671437017,0.01278095,93807.0,93786.0,0.0133408]
[1767671438318,0.01278095,93807.0,93790.0,0.010662]
[1767671439410,0.01278095,93807.0,93790.0,0.005662]
[1767671439915,0.09880475,93809.0,93788.0,0.01264238]
[1767671440119,0.01278095,93807.0,93784.0,0.01264238]
[1767671440322,0.01278095,93806.0,93789.0,0.010662]
[1767671443719,0.01278095,93805.0,93789.0,0.010662]
[1767671445522,0.01278095,93805.0,93786.0,0.02332759]
[1767671446426,0.01278095,93804.0,93786.0,0.010663]
[1767671447136,0.01278095,93804.0,93786.0,0.006663]
[1767671447431,0.01278095,93804.0,93784.0,0.01200757]
[1767671447619,0.01278095,93804.0,93790.0,0.010662]
[1767671454830,0.01278095,93804.0,93785.0,0.01200757]
[1767671455621,0.01278095,93804.0,93790.0,0.010662]
[1767671456026,0.01278095,93804.0,93792.0,0.010662]
[1767671456425,0.09880475,93805.0,93792.0,0.010662]
[1767671456426,0.01192246,93807.0,93792.0,0.010662]
[1767671457835,0.01192246,93807.0,93789.0,0.010662]
[1767671459937,0.10806433,93807.0,93789.0,0.010662]
[1767671460139,0.01192246,93806.0,93789.0,0.010662]
[1767671460533,0.01192246,93806.0,93786.0,0.010662]
[1767671461139,0.02264334,93805.0,93786.0,0.010663]
[1767671461338,0.01198334,93796.0,93782.0,0.09064]
[1767671461534,0.01198334,93796.0,93779.0,0.00213268]
[1767671461535,0.01198334,93795.0,93779.0,0.00213268]
[1767671461725,0.01198334,93794.0,93779.0,0.00213268]
[1767671462431,0.01198334,93794.0,93779.0,0.00479568]
[1767671463540,0.01198334,93794.0,93777.0,0.09064]
[1767671463938,0.01198334,93794.0,93778.0,0.010663]
[1767671466237,0.01198334,93794.0,93777.0,0.09064]
[1767671470248,0.01198334,93794.0,93777.0,0.08564]
[1767671470741,0.09422169,93795.0,93777.0,0.08564]
[1767671470950,0.09422169,93795.0,93777.0,0.09557023]
[1767671471443,0.01198334,93794.0,93777.0,0.08564]
[1767671472239,0.10488369,93795.0,93777.0,0.08564]
[1767671474451,0.09422169,93795.0,93777.0,0.08564]
[1767671477153,0.09422169,93795.0,93778.0,0.010663]
[1767671477759,0.09422169,93795.0,93777.0,0.08564]
[1767671478051,0.09422169,93795.0,93777.0,0.07164]
[1767671478360,0.10488369,93795.0,93777.0,0.07164]
[1767671479546,0.11686703,93795.0,93777.0,0.07164]
[1767671481156,0.10620503,93795.0,93777.0,0.082304]
[1767671481355,0.10620503,93795.0,93777.0,0.07164]
[1767671482158,0.010662,93794.0,93777.0,0.07164]
[1767671482455,0.010662,93794.0,93777.0,0.069561]
[1767671483047,0.010662,93792.0,93777.0,0.069561]
[1767671485657,0.010662,93792.0,93777.0,0.050561]
[1767671486958,0.11686703,93795.0,93777.0,0.050561]
[1767671488351,0.010662,93793.0,93777.0,0.050561]
[1767671489860,0.10620503,93795.0,93777.0,0.061225]
[1767671490349,0.010662,93794.0,93777.0,0.061225]
[1767671490855,0.010662,93794.0,93777.0,0.050561]
[1767671491560,0.11686703,93795.0,93778.0,0.010663]
[1767671492157,0.18895602,93800.0,93777.0,0.050561]
[1767671492158,0.09064,93800.0,93784.0,0.010663]
[1767671492357,0.1025054,93800.0,93784.0,0.010663]
[1767671493363,0.1025054,93800.0,93782.0,0.08338503]
[1767671493573,0.0118654,93804.0,93790.0,0.09831602]
[1767671493760,0.002132,93809.0,93795.0,0.01075035]
[1767671493958,0.002132,93809.0,93799.0,0.09831602]
[1767671494354,0.09068,93811.0,93799.0,0.09831602]
[1767671494556,0.09068,93820.0,93801.0,0.01075035]
[1767671496355,0.09068,93820.0,93802.0,0.010661]
[1767671496665,0.09068,93820.0,93803.0,0.01119506]
[1767671496861,0.09068,93820.0,93810.0,0.09831602]
[1767671497061,0.09068,93820.0,93805.0,0.01119506]
[1767671497370,0.09068,93820.0,93804.0,0.09072203]
[1767671499163,0.09064,93827.0,93810.0,0.09831602]
[1767671499567,0.1025054,93827.0,93810.0,0.09831602]
[1767671499765,0.0118654,93826.0,93810.0,0.09831602]
[1767671500468,0.0118654,93826.0,93810.0,0.10897602]
[1767671502371,0.0118654,93826.0,93810.0,0.10497602]
[1767671502568,0.0118654,93826.0,93810.0,0.09431602]
[1767671502772,0.09064,93827.0,93810.0,0.09431602]
[1767671504271,0.1025054,93827.0,93813.0,0.010659]
[1767671505462,0.09064,93827.0,93810.0,0.11617108]
[1767671505867,0.0118654,93826.0,93810.0,0.01066]
[1767671506069,0.0118654,93826.0,93810.0,0.10897602]
[1767671507461,0.0118654,93826.0,93810.0,0.01066]
[1767671507657,0.0118654,93826.0,93810.0,0.10897602]
[1767671508073,0.0118654,93826.0,93812.0,0.01066]
[1767671509575,0.0118654,93826.0,93810.0,0.09831602]
[1767671509875,0.0118654,93826.0,93810.0,0.10897602]
[1767671511675,0.0118654,93826.0,93813.0,0.010659]
[1767671512174,0.0118654,93826.0,93810.0,0.10897602]
[1767671514270,0.09604815,93821.0,93802.0,0.01119506]
[1767671514467,0.0118654,93824.0,93805.0,0.01119506]
[1767671514666,0.09604815,93826.0,93806.0,0.01119506]
[1767671515172,0.09604815,93826.0,93810.0,0.01066]
[1767671515363,0.10795796,93826.0,93810.0,0.01066]
[1767671515563,0.01190981,93825.0,93810.0,0.01066]
[1767671515760,0.01190981,93824.0,93807.0,0.01066]
[1767671517177,0.01190981,93824.0,93805.0,0.09408909]
[1767671517375,0.01190981,93824.0,93807.0,0.01066]
[1767671517876,0.01190981,93824.0,93805.0,0.09408909]
[1767671518573,0.01190981,93824.0,93808.0,0.01066]
[1767671518767,0.02256781,93823.0,93801.0,0.0120749]
[1767671518965,0.01190981,93823.0,93801.0,0.0120749]
[1767671519272,0.010659,93820.0,93802.0,0.0120749]
[1767671519467,0.010659,93820.0,93802.0,0.11186197]
[1767671519663,0.010659,93817.0,93799.0,0.0119729]
[1767671519865,0.010659,93817.0,93798.0,0.010661]
[1767671519866,0.01190981,93812.0,93798.0,0.010661]
[1767671520066,0.01190981,93812.0,93796.0,0.09064]
[1767671520674,0.01190981,93812.0,93797.0,0.010661]
[1767671520878,0.10257513,93817.0,93800.0,0.09831602]
[1767671521080,0.01185993,93816.0,93800.0,0.09831602]
[1767671521575,0.09066532,93817.0,93800.0,0.09831602]
[1767671521781,0.09066532,93817.0,93803.0,0.010661]
[1767671522777,0.09268536,93823.0,93803.0,0.02210789]
[1767671522981,0.09268536,93823.0,93805.0,0.01066]
[1767671523877,0.10454529,93823.0,93804.0,0.01144689]
[1767671524082,0.01185993,93822.0,93802.0,0.010661]
[1767671524381,0.01185993,93822.0,93804.0,0.01066]
[1767671524967,0.01185993,93822.0,93801.0,0.01134697]
[1767671525172,0.01185993,93822.0,93804.0,0.01066]
[1767671527285,0.01185993,93820.0,93804.0,0.01066]
[1767671528385,0.09268536,93821.0,93804.0,0.01066]
[1767671528786,0.01185993,93823.0,93804.0,0.02147039]
[1767671529084,0.19518529,93827.0,93810.0,0.09831602]
[1767671529584,0.01185993,93825.0,93810.0,0.09831602]
[1767671530282,0.01185993,93825.0,93810.0,0.10897602]
[1767671530480,0.01185993,93824.0,93810.0,0.09831602]
[1767671530676,0.01185993,93821.0,93804.0,0.010661]
[1767671531179,0.01185993,93821.0,93803.0,0.010661]
[1767671532687,0.01185993,93821.0,93801.0,0.00808878]
[1767671533190,0.01185993,93821.0,93803.0,0.010661]
[1767671533494,0.01185993,93819.0,93800.0,0.10897702]
[1767671533789,0.01185993,93819.0,93802.0,0.010661]
[1767671534282,0.010658,93823.0,93804.0,0.01066]
[1767671534482,0.01185993,93822.0,93804.0,0.01066]
[1767671535005,0.01185993,93821.0,93804.0,0.01066]
[1767671535790,0.09268536,93822.0,93804.0,0.01066]
[1767671535981,0.10454529,93822.0,93804.0,0.01066]
[1767671539485,0.01185993,93821.0,93804.0,0.01066]
[1767671539991,0.01185993,93821.0,93801.0,0.010661]
[1767671540189,0.01185993,93817.0,93798.0,0.010661]
[1767671540394,0.01185993,93817.0,93796.0,0.0982058]
[1767671540395,0.01185993,93816.0,93796.0,0.0908668]
[1767671540783,0.01185993,93816.0,93797.0,0.00738038]
[1767671541194,0.01185993,93816.0,93798.0,0.010661]
[1767671542200,0.10454529,93817.0,93798.0,0.01844663]
[1767671543898,0.01185993,93816.0,93798.0,0.01844663]
[1767671545801,0.01185993,93816.0,93798.0,0.010661]
[1767671546002,0.02251893,93816.0,93798.0,0.010661]
[1767671546302,0.01185993,93815.0,93798.0,0.010661]
[1767671548103,0.01185993,93815.0,93796.0,0.18221059]
[1767671548296,0.01185993,93815.0,93798.0,0.010661]
[1767671548903,0.01185993,93815.0,93800.0,0.010661]
[1767671550604,0.09268536,93816.0,93800.0,0.010661]
[1767671551194,0.01185993,93818.0,93800.0,0.010661]
[1767671551395,0.01168565,93821.0,93800.0,0.09777251]
[1767671551801,0.010655,93849.0,93807.0,0.00722315]
[1767671552002,0.010655,93849.0,93825.0,0.00722315]
[1767671552003,0.01168565,93849.0,93825.0,0.00722315]
[1767671552195,0.01168565,93847.0,93827.0,0.00722315]
[1767671552390,0.010655,93851.0,93826.0,0.09064]
[1767671552391,0.10477914,93846.0,93826.0,0.09064]
[1767671552603,0.01168565,93843.0,93826.0,0.09064]
[1767671552797,0.09309349,93844.0,93828.0,0.010658]
[1767671553503,0.01168565,93848.0,93830.0,0.010657]
[1767671553698,0.01168565,93846.0,93830.0,0.010657]
[1767671554395,0.01168565,93846.0,93827.0,0.01810896]
[1767671555707,0.01168565,93846.0,93827.0,0.01310896]
[1767671556191,0.01168565,93846.0,93827.0,0.010658]
[1767671556602,0.01168565,93846.0,93829.0,0.010658]
[1767671557605,0.01168565,93846.0,93828.0,0.010658]
[1767671559501,0.10477914,93843.0,93828.0,0.010658]
[1767671559701,0.01168565,93842.0,93826.0,0.09064]
[1767671559904,0.01168565,93841.0,93826.0,0.09064]
[1767671560107,0.01168565,93836.0,93824.0,0.09064]
[1767671560409,0.01168565,93836.0,93815.0,0.09054936]
[1767671560410,0.01168565,93832.0,93821.0,0.09064]
[1767671560805,0.09309349,93833.0,93821.0,0.09064]
[1767671561002,0.01168565,93836.0,93821.0,0.09064]
[1767671561511,0.010655,93852.0,93809.0,0.002132]
[1767671561512,0.01168565,93824.0,93809.0,0.002132]
[1767671561698,0.010656,93845.0,93809.0,0.002132]
[1767671561699,0.01168565,93821.0,93809.0,0.002132]
[1767671562597,0.01168565,93818.0,93809.0,0.002132]
[1767671562798,0.01168565,93821.0,93809.0,0.002132]
[1767671563614,0.01168565,93821.0,93804.0,0.076772]
[1767671564907,0.10477914,93824.0,93804.0,0.076772]
[1767671566409,0.10477914,93824.0,93805.0,0.01066]
[1767671566708,0.01168565,93823.0,93804.0,0.076772]
[1767671566898,0.01168565,93822.0,93804.0,0.076772]
[1767671567305,0.09309349,93823.0,93804.0,0.09011334]
[1767671567505,0.01168565,93825.0,93806.0,0.01066]
[1767671568206,0.01168565,93827.0,93808.0,0.01066]
[1767671568402,0.01168565,93826.0,93808.0,0.01066]
[1767671569506,0.02234365,93826.0,93807.0,0.00258517]
[1767671570212,0.01168565,93826.0,93808.0,0.01066]
[1767671571815,0.01168565,93826.0,93806.0,0.08379453]
[1767671571816,0.01168565,93825.0,93806.0,0.08379453]
[1767671571998,0.01168565,93824.0,93804.0,0.087432]
[1767671572415,0.01168565,93824.0,93807.0,0.01066]
[1767671573818,0.09309349,93831.0,93812.0,0.00025224]
[1767671574022,0.10477914,93831.0,93813.0,0.010659]
[1767671574206,0.10477914,93831.0,93815.0,0.010659]
[1767671574602,0.2246,93845.0,93818.0,0.00017225]
[1767671574603,0.01168565,93842.0,93818.0,0.00017225]
[1767671574914,0.010656,93843.0,93825.0,7.682e-05]
[1767671575111,0.02168274,93843.0,93825.0,7.682e-05]
[1767671575507,0.02168274,93843.0,93824.0,0.0995431]
[1767671576017,0.01102674,93842.0,93824.0,0.0995431]
[1767671576414,0.00213132,93839.0,93824.0,0.0995431]
[1767671577312,0.01278832,93839.0,93821.0,7.682e-05]
[1767671577512,0.01278832,93839.0,93819.0,0.010659]
[1767671577513,0.01102674,93832.0,93819.0,0.010659]
[1767671578116,0.09585711,93833.0,93819.0,0.010659]
[1767671578914,0.09585711,93833.0,93818.0,0.085299]
[1767671579316,0.09585711,93833.0,93819.0,0.010659]
[1767671580507,0.09585711,93833.0,93818.0,0.085299]
[1767671580707,0.09585711,93826.0,93809.0,0.01066]
[1767671581013,0.01102674,93823.0,93811.0,0.01066]
[1767671581521,0.01102674,93823.0,93808.0,0.01066]
[1767671581817,0.01102674,93823.0,93809.0,0.09064]
[1767671582018,0.09585711,93824.0,93809.0,0.09064]
[1767671583019,0.01104477,93823.0,93809.0,0.09064]
[1767671583322,0.01104477,93822.0,93809.0,0.09064]
[1767671583711,0.01104477,93822.0,93808.0,0.09064]
[1767671584019,0.01104477,93820.0,93808.0,0.09064]
[1767671584511,0.01104477,93820.0,93805.0,0.01066]
[1767671586624,0.09962091,93821.0,93804.0,0.0873]
[1767671588118,0.09962091,93821.0,93807.0,0.01066]
[1767671588823,0.09962091,93821.0,93804.0,0.09796]
[1767671589310,0.01104477,93824.0,93806.0,0.01066]
[1767671589509,0.01104477,93824.0,93804.0,0.0873]
[1767671589722,0.01104477,93823.0,93804.0,0.0873]
[1767671590020,0.01104477,93823.0,93805.0,0.01066]
[1767671590721,0.01104477,93823.0,93807.0,0.01066]
[1767671591417,0.01104477,93823.0,93804.0,0.08831971]
[1767671591626,0.010658,93822.0,93804.0,0.08831971]
[1767671591818,0.02170277,93822.0,93804.0,0.08831971]
[1767671592024,0.01104477,93820.0,93804.0,0.0873]
[1767671592522,0.01104477,93820.0,93804.0,0.09796]
[1767671593627,0.01104477,93820.0,93804.0,0.0873]
[1767671593823,0.01104477,93814.0,93803.0,0.09064]
[1767671594316,0.01104477,93819.0,93803.0,0.091301]
[1767671594624,0.09962091,93822.0,93806.0,0.01066]
[1767671596425,0.12132468,93822.0,93803.0,0.091301]
[1767671597031,0.12132468,93822.0,93805.0,0.01066]
[1767671597328,0.11066568,93822.0,93807.0,0.01066]
[1767671599830,0.01104477,93821.0,93804.0,0.010661]
[1767671600020,0.01104477,93814.0,93798.0,0.010661]
[1767671600220,0.01104477,93814.0,93800.0,0.010661]
[1767671600629,0.01104477,93814.0,93801.0,0.09064]
[1767671601425,0.01104477,93814.0,93802.0,0.010661]
[1767671602025,0.01104477,93814.0,93801.0,0.084301]
[1767671602525,0.01104477,93810.0,93789.0,0.0002498]
[1767671602730,0.01104477,93807.0,93796.0,0.09064]
[1767671602935,0.01104477,93807.0,93794.0,0.010662]
[1767671603232,0.01104477,93806.0,93794.0,0.09064]
[1767671603432,0.11066568,93806.0,93794.0,0.09064]
[1767671604934,0.11066568,93806.0,93794.0,0.101302]
[1767671605634,0.11066568,93806.0,93794.0,0.09064]
[1767671606436,0.01104477,93806.0,93794.0,0.09064]
[1767671606731,0.01104477,93809.0,93794.0,0.09064]
[1767671607536,0.01104477,93808.0,93794.0,0.09064]
[1767671607738,0.01104477,93803.0,93792.0,0.09064]
[1767671607926,0.01104477,93803.0,93789.0,0.09064]
[1767671608333,0.09962091,93804.0,93789.0,0.09064]
[1767671608837,0.01104477,93807.0,93789.0,0.09064]
[1767671609735,0.01104477,93807.0,93789.0,0.06964]
[1767671609937,0.01104477,93810.0,93795.0,0.010661]
[1767671610130,0.01104477,93808.0,93795.0,0.010661]
[1767671610324,0.01104477,93808.0,93790.0,0.09825588]
[1767671610627,0.09962091,93809.0,93790.0,0.09848693]
[1767671610829,0.09962091,93809.0,93794.0,0.010662]
[1767671611231,0.09962091,93809.0,93796.0,0.010661]
[1767671611633,0.09825588,93810.0,93791.0,0.00077709]
[1767671611832,0.01104477,93812.0,93792.0,0.00077709]
[1767671612742,0.01104477,93812.0,93796.0,0.010661]
[1767671615437,0.01104477,93812.0,93793.0,0.010662]
[1767671615737,0.01104477,93812.0,93796.0,0.010661]
[1767671616746,0.09172558,93814.0,93800.0,0.010661]
[1767671617049,0.01034015,93819.0,93800.0,0.10891688]
[1767671617244,0.01034015,93818.0,93800.0,0.10891688]
[1767671617544,0.01034015,93816.0,93800.0,0.09191688]
[1767671618142,0.01034015,93816.0,93800.0,0.10257788]
[1767671621744,0.01034015,93814.0,93796.0,0.10301498]
[1767671622045,0.01034015,93814.0,93796.0,0.010661]
[1767671623752,0.01034015,93814.0,93800.0,0.09825588]
[1767671624651,0.02099915,93814.0,93793.0,0.00027752]
[1767671624955,0.01034015,93814.0,93793.0,0.00027752]
[1767671625152,0.01034015,93814.0,93791.0,0.0776315]
[1767671626256,0.01034015,93814.0,93797.0,0.010661]
[1767671626645,0.01034015,93813.0,93800.0,0.09825588]
[1767671626846,0.01034015,93813.0,93800.0,0.10891688]
[1767671627151,0.01034015,93813.0,93800.0,0.09825588]
[1767671627862,0.01034015,93813.0,93796.0,0.010661]
[1767671628158,0.01034015,93813.0,93800.0,0.09825588]
[1767671629754,0.01034015,93813.0,93798.0,0.010661]
[1767671629955,0.09172558,93814.0,93800.0,0.010661]
[1767671630555,0.10206573,93814.0,93800.0,0.010661]
[1767671631263,0.10206573,93814.0,93800.0,0.10891688]
[1767671632859,0.10206573,93814.0,93800.0,0.08491688]
[1767671633360,0.10206573,93814.0,93800.0,0.09557788]
[1767671637263,0.10206573,93814.0,93800.0,0.08491688]
[1767671637667,0.01091868,93819.0,93800.0,0.09557788]
[1767671637960,0.01091868,93816.0,93800.0,0.09557788]
[1767671638265,0.01091868,93813.0,93800.0,0.08491688]
[1767671639362,0.01091868,93813.0,93801.0,0.010661]
[1767671639962,0.01091868,93813.0,93798.0,0.010661]
[1767671640168,0.01091868,93813.0,93800.0,0.09825588]
[1767671640569,0.01091868,93813.0,93800.0,0.08525588]
[1767671641668,0.01091868,93813.0,93798.0,0.010661]
[1767671641871,0.01091868,93813.0,93796.0,0.010661]
[1767671642167,0.11024837,93811.0,93791.0,0.010662]
[1767671642364,0.01027175,93810.0,93793.0,0.010662]
[1767671642869,0.09997662,93811.0,93791.0,0.0992535]
[1767671643258,0.02093175,93806.0,93791.0,0.09064]
[1767671643457,0.01027175,93805.0,93791.0,0.09064]
[1767671643674,0.02093175,93809.0,93791.0,0.09064]
[1767671643967,0.01027175,93808.0,93791.0,0.09064]
[1767671645669,0.01027175,93808.0,93791.0,0.101302]
[1767671645971,0.02093175,93811.0,93791.0,0.101302]
[1767671647272,0.02093175,93811.0,93791.0,0.09064]
[1767671647572,0.01027175,93810.0,93791.0,0.09064]
[1767671647773,0.01027175,93810.0,93792.0,0.010662]
[1767671648473,0.01027175,93810.0,93791.0,0.073302]
[1767671649372,0.01027175,93810.0,93795.0,0.010662]
[1767671649677,0.11063662,93812.0,93792.0,0.1099155]
[1767671651075,0.01066,93812.0,93792.0,0.1099155]
[1767671651870,0.01066,93812.0,93794.0,0.010662]
[1767671652062,0.01066,93812.0,93794.0,0.1099155]
[1767671654377,0.09064,93813.0,93796.0,0.010661]
[1767671654771,0.09064,93813.0,93795.0,0.010661]
[1767671655177,0.09064,93813.0,93795.0,0.1099145]
[1767671656181,0.09064,93813.0,93795.0,0.0879145]
[1767671656881,0.01066,93812.0,93795.0,0.0985755]
[1767671657780,0.01066,93812.0,93795.0,0.0879145]
[1767671659184,0.01066,93809.0,93795.0,0.0879145]
[1767671659573,0.01066,93812.0,93795.0,0.0879145]
[1767671659985,0.09064,93813.0,93798.0,0.010661]
[1767671661374,0.09064,93813.0,93795.0,0.0985765]
[1767671663886,0.09064,93813.0,93795.0,0.0675765]
[1767671665290,0.10091175,93813.0,93795.0,0.010662]
[1767671667392,0.09064,93813.0,93795.0,0.010662]
[1767671667993,0.10091175,93813.0,93797.0,0.010661]
[1767671669092,0.09997662,93821.0,93799.0,0.0992535]
[1767671669394,0.010659,93821.0,93801.0,0.0992535]
[1767671669690,0.010659,93821.0,93803.0,0.0992535]
[1767671671586,0.010659,93821.0,93803.0,0.0952535]
[1767671672791,0.010659,93821.0,93804.0,0.010661]
[1767671676297,0.10523274,93821.0,93801.0,0.010661]
[1767671676995,0.01060972,93820.0,93801.0,0.010661]
[1767671677199,0.010659,93818.0,93801.0,0.010661]
[1767671677890,0.010659,93818.0,93798.0,0.10198916]
[1767671678098,0.010659,93816.0,93798.0,0.10198916]
[1767671679396,0.010659,93816.0,93798.0,0.07798916]
[1767671679795,0.01060972,93820.0,93801.0,0.010661]